Workbook

Sheet MesSportifs
J1: Aujourd'hui | L1: Juniors | N1: Seniors
J2: =TODAY() -> 2015-04-05 | L2: =COUNTIF(H6:H124,"Junior") -> 57 | N2: =COUNTIF(H6:H124,"Senior") -> 62
A5: NAME | B5: FIRST NAME | C5: Country | D5: Club | E5: Sex | F5: Birthday | G5: Age | H5: Category | I5: Score max=3800 | J5: Score1 max=100 | K5: COMMENTS | L5: Score max=1500 | M5: Score2 max=100 | N5: COMMENTS2 | O5: AVERAGE SCORE max=100 | P5: DECISION
A6: AGE | B6: Marie | C6: Belgium | D6: Atleco | E6: F | F6: 1992-09-16 | G6: =YEAR(J$2)-YEAR(F6)-IF(DATE(YEAR(J$2),MONTH(F6),DAY(F6))>J$2,1,0) -> 22 | H6: =IF(G6<18,"Junior","Senior") -> Senior | I6: 3590 | J6: =I6/38 -> 94.47368421 | K6: =IF(AND(J6>=80,H6="Junior"),"High Potential",IF(AND(J6>=60,H6="Senior"),"OK",IF(J6>=60,"More training needed","To be improved"))) -> OK | L6: 1208 | M6: =L6/15 -> 80.53333333 | N6: =IF(AND(M6>=80,H6="Junior"),"High Potential",IF(AND(M6>=60,H6="Senior"),"OK",IF(M6>=60,"More training needed","To be improved"))) -> OK | O6: =(M6+J6)/2 -> 87.50350877 | P6: =IF(AND(J6>=60,M6>=60),"Accepted",IF(M6>J6,"New test needed","Not accepted")) -> Accepted
A7: ALGRAIN | B7: Michel | C7: Belgium | D7: Atleco | E7: M | F7: 1995-03-25 | G7: 20 | H7: Senior | I7: 2432 | J7: 64 | K7: OK | L7: 870 | M7: 58 | N7: To be improved | O7: 61 | P7: Not accepted
A8: ALLER-LOPEZ | B8: Miguel | C8: Spain | D8: Asturial | E8: M | F8: 2000-10-17 | G8: 14 | H8: Junior | I8: 2512 | J8: 66.10526316 | K8: More training needed | L8: 780 | M8: 52 | N8: To be improved | O8: 59.05263158 | P8: Not accepted
A9: ANDCLYDE | B9: Bonnie | C9: Netherlands | D9: Extrasportief | E9: F | F9: 1996-12-28 | G9: 18 | H9: Senior | I9: 2140 | J9: 56.31578947 | K9: To be improved | L9: 1001 | M9: 66.73333333 | N9: OK | O9: 61.5245614 | P9: New test needed
A10: ARICKX | B10: Josiane | C10: France | D10: Olympic | E10: F | F10: 1993-10-28 | G10: 21 | H10: Senior | I10: 2154 | J10: 56.68421053 | K10: To be improved | L10: 520 | M10: 34.66666667 | N10: To be improved | O10: 45.6754386 | P10: Not accepted
A11: ATTEND | B11: Charles | C11: Belgium | D11: Atleco | E11: M | F11: 1991-12-10 | G11: 23 | H11: Senior | I11: 2784 | J11: 73.26315789 | K11: OK | L11: 988 | M11: 65.86666667 | N11: OK | O11: 69.56491228 | P11: Accepted
A12: AUGRANDPIED | B12: Berthe | C12: Switzerland | D12: Sporteo | E12: F | F12: 1999-08-17 | G12: 15 | H12: Junior | I12: 3601 | J12: 94.76315789 | K12: High Potential | L12: 1223 | M12: 81.53333333 | N12: High Potential | O12: 88.14824561 | P12: Accepted
A13: BELGUENANI | B13: Mimoun | C13: Algeria | D13: Raja | E13: M | F13: 1996-06-15 | G13: 18 | H13: Senior | I13: 1941 | J13: 51.07894737 | K13: To be improved | L13: 915 | M13: 61 | N13: OK | O13: 56.03947368 | P13: New test needed
A14: BEN SLIMANE | B14: Jamal | C14: Algeria | D14: Raja | E14: M | F14: 1997-04-19 | G14: 17 | H14: Junior | I14: 2154 | J14: 56.68421053 | K14: To be improved | L14: 1200 | M14: 80 | N14: High Potential | O14: 68.34210526 | P14: New test needed
A15: BENTHAMI-KHIBI | B15: Hafida | C15: Algeria | D15: Raja | E15: F | F15: 2000-10-17 | G15: 14 | H15: Junior | I15: 2897 | J15: 76.23684211 | K15: More training needed | L15: 897 | M15: 59.8 | N15: To be improved | O15: 68.01842105 | P15: Not accepted
A16: BERWETTE | B16: Andrée | C16: Switzerland | D16: Sporteo | E16: F | F16: 1993-12-14 | G16: 21 | H16: Senior | I16: 2858 | J16: 75.21052632 | K16: OK | L16: 858 | M16: 57.2 | N16: To be improved | O16: 66.20526316 | P16: Not accepted
A17: BERY | B17: Georges | C17: France | D17: Olympic | E17: M | F17: 1993-09-21 | G17: 21 | H17: Senior | I17: 3156 | J17: 83.05263158 | K17: OK | L17: 1156 | M17: 77.06666667 | N17: OK | O17: 80.05964912 | P17: Accepted
A18: BILLEN | B18: Bernard | C18: Belgium | D18: Atleco | E18: M | F18: 1996-08-24 | G18: 18 | H18: Senior | I18: 2841 | J18: 74.76315789 | K18: OK | L18: 841 | M18: 56.06666667 | N18: To be improved | O18: 65.41491228 | P18: Not accepted
A19: BOLLE | B19: Maggy | C19: Belgium | D19: Atleco | E19: F | F19: 1991-11-05 | G19: 23 | H19: Senior | I19: 2969 | J19: 78.13157895 | K19: OK | L19: 343 | M19: 22.86666667 | N19: To be improved | O19: 50.49912281 | P19: Not accepted
A20: BONNEWYN | B20: Ariane | C20: Belgium | D20: Atleco | E20: F | F20: 2000-10-17 | G20: 14 | H20: Junior | I20: 3086 | J20: 81.21052632 | K20: High Potential | L20: 1086 | M20: 72.4 | N20: More training needed | O20: 76.80526316 | P20: Accepted
A21: BOVY | B21: Michèle | C21: Belgium | D21: Atleco | E21: F | F21: 2001-06-08 | G21: 13 | H21: Junior | I21: 1953 | J21: 51.39473684 | K21: To be improved | L21: 1280 | M21: 85.33333333 | N21: High Potential | O21: 68.36403509 | P21: New test needed
A22: CALATAYUD | B22: Mercedes | C22: Spain | D22: Asturial | E22: F | F22: 1998-05-31 | G22: 16 | H22: Junior | I22: 3207 | J22: 84.39473684 | K22: High Potential | L22: 1207 | M22: 80.46666667 | N22: High Potential | O22: 82.43070175 | P22: Accepted
A23: CAMBY | B23: Thierry | C23: Switzerland | D23: Sporteo | E23: M | F23: 2000-10-17 | G23: 14 | H23: Junior | I23: 2261 | J23: 59.5 | K23: To be improved | L23: 261 | M23: 17.4 | N23: To be improved | O23: 38.45 | P23: Not accepted
A24: CARLIER | B24: Luc | C24: Belgium | D24: Atleco | E24: M | F24: 1996-05-06 | G24: 18 | H24: Senior | I24: 2420 | J24: 63.68421053 | K24: OK | L24: 420 | M24: 28 | N24: To be improved | O24: 45.84210526 | P24: Not accepted
A25: CELY | B25: Peter | C25: Netherlands | D25: Extrasportief | E25: M | F25: 1993-04-15 | G25: 21 | H25: Senior | I25: 3541 | J25: 93.18421053 | K25: OK | L25: 776 | M25: 51.73333333 | N25: To be improved | O25: 72.45877193 | P25: Not accepted
A26: CINCINATIS | B26: Yves | C26: Belgium | D26: Atleco | E26: M | F26: 2000-07-19 | G26: 14 | H26: Junior | I26: 3144 | J26: 82.73684211 | K26: High Potential | L26: 1144 | M26: 76.26666667 | N26: More training needed | O26: 79.50175439 | P26: Accepted
A27: CLETTE | B27: Lara | C27: Switzerland | D27: Sporteo | E27: F | F27: 2000-08-17 | G27: 14 | H27: Junior | I27: 2813 | J27: 74.02631579 | K27: More training needed | L27: 244 | M27: 16.26666667 | N27: To be improved | O27: 45.14649123 | P27: Not accepted
A28: COBLANT | B28: Harry | C28: Switzerland | D28: Sporteo | E28: M | F28: 1998-11-18 | G28: 16 | H28: Junior | I28: 2153 | J28: 56.65789474 | K28: To be improved | L28: 774 | M28: 51.6 | N28: To be improved | O28: 54.12894737 | P28: Not accepted
A29: COLOGNE | B29: Aude | C29: Switzerland | D29: Sporteo | E29: F | F29: 1998-03-18 | G29: 17 | H29: Junior | I29: 1964 | J29: 51.68421053 | K29: To be improved | L29: 224 | M29: 14.93333333 | N29: To be improved | O29: 33.30877193 | P29: Not accepted
A30: COSSE | B30: Michèle | C30: Switzerland | D30: Sporteo | E30: F | F30: 2000-10-17 | G30: 14 | H30: Junior | I30: 2003 | J30: 52.71052632 | K30: To be improved | L30: 800 | M30: 53.33333333 | N30: To be improved | O30: 53.02192982 | P30: New test needed
A31: COVAIR | B31: Harry | C31: Belgium | D31: Atleco | E31: M | F31: 1996-08-20 | G31: 18 | H31: Senior | I31: 2998 | J31: 78.89473684 | K31: OK | L31: 231 | M31: 15.4 | N31: To be improved | O31: 47.14736842 | P31: Not accepted
A32: DAO | B32: Phung Nam | C32: Korea | D32: Sporteo | E32: M | F32: 1999-06-07 | G32: 15 | H32: Junior | I32: 3196 | J32: 84.10526316 | K32: High Potential | L32: 1196 | M32: 79.73333333 | N32: More training needed | O32: 81.91929825 | P32: Accepted
A33: DE BACKER | B33: Patrick | C33: Belgium | D33: Atleco | E33: M | F33: 1993-01-17 | G33: 22 | H33: Senior | I33: 3410 | J33: 89.73684211 | K33: OK | L33: 1410 | M33: 94 | N33: OK | O33: 91.86842105 | P33: Accepted
A34: de GHELDERE | B34: Jean-Benoît | C34: Switzerland | D34: Sporteo | E34: M | F34: 1997-02-27 | G34: 18 | H34: Senior | I34: 3255 | J34: 85.65789474 | K34: OK | L34: 1255 | M34: 83.66666667 | N34: OK | O34: 84.6622807 | P34: Accepted
A35: DE LEEUW | B35: Philippe | C35: Belgium | D35: Atleco | E35: M | F35: 1992-05-27 | G35: 22 | H35: Senior | I35: 2535 | J35: 66.71052632 | K35: OK | L35: 535 | M35: 35.66666667 | N35: To be improved | O35: 51.18859649 | P35: Not accepted
A36: DEBAST | B36: Frédéric | C36: Belgium | D36: Atleco | E36: M | F36: 2000-02-04 | G36: 15 | H36: Junior | I36: 2547 | J36: 67.02631579 | K36: More training needed | L36: 547 | M36: 36.46666667 | N36: To be improved | O36: 51.74649123 | P36: Not accepted
A37: DECAMPS | B37: Lucienne | C37: France | D37: Olympic | E37: F | F37: 1999-09-24 | G37: 15 | H37: Junior | I37: 3240 | J37: 85.26315789 | K37: High Potential | L37: 1240 | M37: 82.66666667 | N37: High Potential | O37: 83.96491228 | P37: Accepted
A38: DEQUENNE | B38: Philippe | C38: Belgium | D38: Atleco | E38: M | F38: 1999-10-22 | G38: =YEAR(J$2)-YEAR(F38)-IF(DATE(YEAR(J$2),MONTH(F38),DAY(F38))>J$2,1,0) -> 15 | H38: =IF(G38<18,"Junior","Senior") -> Junior | I38: 2547 | J38: =I38/38 -> 67.02631579 | K38: =IF(AND(J38>=80,H38="Junior"),"High Potential",IF(AND(J38>=60,H38="Senior"),"OK",IF(J38>=60,"More training needed","To be improved"))) -> More training needed | L38: 547 | M38: =L38/15 -> 36.46666667 | N38: =IF(AND(M38>=80,H38="Junior"),"High Potential",IF(AND(M38>=60,H38="Senior"),"OK",IF(M38>=60,"More training needed","To be improved"))) -> To be improved | O38: =(M38+J38)/2 -> 51.74649123 | P38: =IF(AND(J38>=60,M38>=60),"Accepted",IF(M38>J38,"New test needed","Not accepted")) -> Not accepted
A39: DETOUSSE | B39: Aimée | C39: France | D39: Olympic | E39: F | F39: 1991-10-12 | G39: 23 | H39: Senior | I39: 3732 | J39: 98.21052632 | K39: OK | L39: 1272 | M39: 84.8 | N39: OK | O39: 91.50526316 | P39: Accepted
A40: DUHOUX | B40: Marc | C40: Switzerland | D40: Sporteo | E40: M | F40: 1997-02-11 | G40: 18 | H40: Senior | I40: 2688 | J40: 70.73684211 | K40: OK | L40: 688 | M40: 45.86666667 | N40: To be improved | O40: 58.30175439 | P40: Not accepted
A41: DUMONT | B41: Christophe | C41: Belgium | D41: Atleco | E41: M | F41: 1999-03-29 | G41: 16 | H41: Junior | I41: 3219 | J41: 84.71052632 | K41: High Potential | L41: 1219 | M41: 81.26666667 | N41: High Potential | O41: 82.98859649 | P41: Accepted
A42: DUPONT | B42: Marie | C42: Belgium | D42: Atleco | E42: F | F42: 1992-06-22 | G42: 22 | H42: Senior | I42: 2500 | J42: 65.78947368 | K42: OK | L42: 500 | M42: 33.33333333 | N42: To be improved | O42: 49.56140351 | P42: Not accepted
A43: EAUDURANUS | B43: Anne | C43: Belgium | D43: Atleco | E43: F | F43: 1999-03-23 | G43: 16 | H43: Junior | I43: 2289 | J43: 60.23684211 | K43: More training needed | L43: 450 | M43: 30 | N43: To be improved | O43: 45.11842105 | P43: Not accepted
A44: EL BARAKA | B44: Mohammed | C44: Morocco | D44: Doukal | E44: M | F44: 1991-10-10 | G44: 23 | H44: Senior | I44: 3239 | J44: 85.23684211 | K44: OK | L44: 1239 | M44: 82.6 | N44: OK | O44: 83.91842105 | P44: Accepted
A45: FONTAINE | B45: Robert | C45: Switzerland | D45: Sporteo | E45: M | F45: 1996-04-11 | G45: 18 | H45: Senior | I45: 3156 | J45: 83.05263158 | K45: OK | L45: 1156 | M45: 77.06666667 | N45: OK | O45: 80.05964912 | P45: Accepted
A46: GARCIA Y ARENAS | B46: José | C46: Spain | D46: Asturial | E46: M | F46: 1995-10-16 | G46: 19 | H46: Senior | I46: 3133 | J46: 82.44736842 | K46: OK | L46: 1133 | M46: 75.53333333 | N46: OK | O46: 78.99035088 | P46: Accepted
A47: GERGES | B47: Antoinette | C47: France | D47: Olympic | E47: F | F47: 2000-10-17 | G47: 14 | H47: Junior | I47: 3145 | J47: 82.76315789 | K47: High Potential | L47: 1145 | M47: 76.33333333 | N47: More training needed | O47: 79.54824561 | P47: Accepted
A48: GOUDESEUNE | B48: Marc | C48: Belgium | D48: Atleco | E48: M | F48: 1992-12-15 | G48: 22 | H48: Senior | I48: 3238 | J48: 85.21052632 | K48: OK | L48: 1238 | M48: 82.53333333 | N48: OK | O48: 83.87192982 | P48: Accepted
A49: GOZZI | B49: Sergio | C49: Italy | D49: Atletico | E49: M | F49: 1998-11-02 | G49: 16 | H49: Junior | I49: 3204 | J49: 84.31578947 | K49: High Potential | L49: 1204 | M49: 80.26666667 | N49: High Potential | O49: 82.29122807 | P49: Accepted
A50: GUION | B50: Jean-Luc | C50: Belgium | D50: Atleco | E50: M | F50: 2000-08-23 | G50: 14 | H50: Junior | I50: 2886 | J50: 75.94736842 | K50: More training needed | L50: 1200 | M50: 80 | N50: High Potential | O50: 77.97368421 | P50: Accepted
A51: GUZZARDI | B51: Francesca | C51: Italy | D51: Atletico | E51: F | F51: 1994-12-16 | G51: 20 | H51: Senior | I51: 2953 | J51: 77.71052632 | K51: OK | L51: 953 | M51: 63.53333333 | N51: OK | O51: 70.62192982 | P51: Accepted
A52: HADIJ | B52: Lahoussine | C52: Algeria | D52: Raja | E52: M | F52: 1999-05-11 | G52: 15 | H52: Junior | I52: 2862 | J52: 75.31578947 | K52: More training needed | L52: 862 | M52: 57.46666667 | N52: To be improved | O52: 66.39122807 | P52: Not accepted
A53: HENRY de GENERET | B53: Louis | C53: France | D53: Olympic | E53: M | F53: 1996-04-10 | G53: 18 | H53: Senior | I53: 1980 | J53: 52.10526316 | K53: To be improved | L53: 1230 | M53: 82 | N53: OK | O53: 67.05263158 | P53: New test needed
A54: HERVERT | B54: Hubert | C54: France | D54: Olympic | E54: M | F54: 2000-10-17 | G54: 14 | H54: Junior | I54: 2372 | J54: 62.42105263 | K54: More training needed | L54: 1248 | M54: 83.2 | N54: High Potential | O54: 72.81052632 | P54: Accepted
A55: HONETTE | B55: Marie | C55: Belgium | D55: Atleco | E55: F | F55: 1993-04-25 | G55: 21 | H55: Senior | I55: 3505 | J55: 92.23684211 | K55: OK | L55: 711 | M55: 47.4 | N55: To be improved | O55: 69.81842105 | P55: Not accepted
A56: HUSSIN | B56: Louis | C56: France | D56: Olympic | E56: M | F56: 1995-08-17 | G56: 19 | H56: Senior | I56: 2412 | J56: 63.47368421 | K56: OK | L56: 1430 | M56: 95.33333333 | N56: OK | O56: 79.40350877 | P56: Accepted
A57: JANSSENS | B57: Paul | C57: Netherlands | D57: Extrasportief | E57: M | F57: 2000-04-17 | G57: 14 | H57: Junior | I57: 3398 | J57: 89.42105263 | K57: High Potential | L57: 1398 | M57: 93.2 | N57: High Potential | O57: 91.31052632 | P57: Accepted
A58: JANSSENS | B58: Ed | C58: Netherlands | D58: Extrasportief | E58: M | F58: 1995-08-19 | G58: 19 | H58: Senior | I58: 2097 | J58: 55.18421053 | K58: To be improved | L58: 1200 | M58: 80 | N58: OK | O58: 67.59210526 | P58: New test needed
A59: KINNAER | B59: Thierry | C59: Belgium | D59: Atleco | E59: M | F59: 1992-03-16 | G59: 23 | H59: Senior | I59: 2965 | J59: 78.02631579 | K59: OK | L59: 1400 | M59: 93.33333333 | N59: OK | O59: 85.67982456 | P59: Accepted
A60: KOC | B60: Ali | C60: Morocco | D60: Doukal | E60: M | F60: 1994-11-04 | G60: 20 | H60: Senior | I60: 2876 | J60: 75.68421053 | K60: OK | L60: 870 | M60: 58 | N60: To be improved | O60: 66.84210526 | P60: Not accepted
A61: LESSIRE | B61: Jeanne | C61: Belgium | D61: Atleco | E61: F | F61: 2000-08-20 | G61: 14 | H61: Junior | I61: 1941 | J61: 51.07894737 | K61: To be improved | L61: 920 | M61: 61.33333333 | N61: More training needed | O61: 56.20614035 | P61: New test needed
A62: LUQUE RODRIGEZ | B62: Enrique | C62: Spain | D62: Asturial | E62: M | F62: 1993-05-20 | G62: 21 | H62: Senior | I62: 3063 | J62: 80.60526316 | K62: OK | L62: 1063 | M62: 70.86666667 | N62: OK | O62: 75.73596491 | P62: Accepted
A63: MAGNE | B63: Charles | C63: Switzerland | D63: Sporteo | E63: M | F63: 2000-09-09 | G63: 14 | H63: Junior | I63: 1972 | J63: 51.89473684 | K63: To be improved | L63: 644 | M63: 42.93333333 | N63: To be improved | O63: 47.41403509 | P63: Not accepted
A64: MAHAR | B64: Hadja | C64: Algeria | D64: Raja | E64: F | F64: 2000-10-17 | G64: 14 | H64: Junior | I64: 2749 | J64: 72.34210526 | K64: More training needed | L64: 1114 | M64: 74.26666667 | N64: More training needed | O64: 73.30438596 | P64: Accepted
A65: MAHY | B65: Jean-Marc | C65: Switzerland | D65: Sporteo | E65: M | F65: 1992-01-05 | G65: 23 | H65: Senior | I65: 3121 | J65: 82.13157895 | K65: OK | L65: 1121 | M65: 74.73333333 | N65: OK | O65: 78.43245614 | P65: Accepted
A66: MANFROY | B66: Gérard | C66: Belgium | D66: Atleco | E66: M | F66: 1995-12-28 | G66: 19 | H66: Senior | I66: 2674 | J66: 70.36842105 | K66: OK | L66: 493 | M66: 32.86666667 | N66: To be improved | O66: 51.61754386 | P66: Not accepted
A67: MARIN PEREZ | B67: Rafael | C67: Spain | D67: Asturial | E67: M | F67: 1993-05-20 | G67: 21 | H67: Senior | I67: 3251 | J67: 85.55263158 | K67: OK | L67: 1251 | M67: 83.4 | N67: OK | O67: 84.47631579 | P67: Accepted
A68: MAROT | B68: Bernard | C68: Switzerland | D68: Sporteo | E68: M | F68: 1996-06-17 | G68: 18 | H68: Senior | I68: 2536 | J68: 66.73684211 | K68: OK | L68: 536 | M68: 35.73333333 | N68: To be improved | O68: 51.23508772 | P68: Not accepted
A69: MARTINEZ GREVESSE | B69: Arturo | C69: Italy | D69: Atletico | E69: M | F69: 1994-05-20 | G69: 20 | H69: Senior | I69: 2964 | J69: 78 | K69: OK | L69: 964 | M69: 64.26666667 | N69: OK | O69: 71.13333333 | P69: Accepted
A70: MARTINEZ GREVESSE | B70: Emilio | C70: Italy | D70: Atletico | E70: M | F70: 1992-11-18 | G70: =YEAR(J$2)-YEAR(F70)-IF(DATE(YEAR(J$2),MONTH(F70),DAY(F70))>J$2,1,0) -> 22 | H70: =IF(G70<18,"Junior","Senior") -> Senior | I70: 2524 | J70: =I70/38 -> 66.42105263 | K70: =IF(AND(J70>=80,H70="Junior"),"High Potential",IF(AND(J70>=60,H70="Senior"),"OK",IF(J70>=60,"More training needed","To be improved"))) -> OK | L70: 524 | M70: =L70/15 -> 34.93333333 | N70: =IF(AND(M70>=80,H70="Junior"),"High Potential",IF(AND(M70>=60,H70="Senior"),"OK",IF(M70>=60,"More training needed","To be improved"))) -> To be improved | O70: =(M70+J70)/2 -> 50.67719298 | P70: =IF(AND(J70>=60,M70>=60),"Accepted",IF(M70>J70,"New test needed","Not accepted")) -> Not accepted
A71: MARZOUKI | B71: Mohamed | C71: Algeria | D71: Raja | E71: M | F71: 2000-06-07 | G71: 14 | H71: Junior | I71: 2941 | J71: 77.39473684 | K71: More training needed | L71: 941 | M71: 62.73333333 | N71: More training needed | O71: 70.06403509 | P71: Accepted
A72: MAUVE | B72: Maggy | C72: France | D72: Olympic | E72: F | F72: 1997-05-01 | G72: 17 | H72: Junior | I72: 2837 | J72: 74.65789474 | K72: More training needed | L72: 914 | M72: 60.93333333 | N72: More training needed | O72: 67.79561404 | P72: Accepted
A73: MENVUSSA | B73: Gérard | C73: France | D73: Olympic | E73: M | F73: 1995-10-18 | G73: 19 | H73: Senior | I73: 2625 | J73: 69.07894737 | K73: OK | L73: 882 | M73: 58.8 | N73: To be improved | O73: 63.93947368 | P73: Not accepted
A74: MISSAOUI | B74: Anane | C74: Algeria | D74: Raja | E74: F | F74: 2001-01-21 | G74: 14 | H74: Junior | I74: 2165 | J74: 56.97368421 | K74: To be improved | L74: 670 | M74: 44.66666667 | N74: To be improved | O74: 50.82017544 | P74: Not accepted
A75: MOERS | B75: Serge | C75: Belgium | D75: Atleco | E75: M | F75: 2000-12-18 | G75: 14 | H75: Junior | I75: 2853 | J75: 75.07894737 | K75: More training needed | L75: 853 | M75: 56.86666667 | N75: To be improved | O75: 65.97280702 | P75: Not accepted
A76: MUDA | B76: Albert | C76: France | D76: Olympic | E76: M | F76: 1999-02-20 | G76: 16 | H76: Junior | I76: 3554 | J76: 93.52631579 | K76: High Potential | L76: 950 | M76: 63.33333333 | N76: More training needed | O76: 78.42982456 | P76: Accepted
A77: NEUSY | B77: Philippe | C77: France | D77: Olympic | E77: M | F77: 1999-10-09 | G77: 15 | H77: Junior | I77: 2524 | J77: 66.42105263 | K77: More training needed | L77: 524 | M77: 34.93333333 | N77: To be improved | O77: 50.67719298 | P77: Not accepted
A78: NGUYEN | B78: Trong-Thao | C78: Korea | D78: Sporteo | E78: M | F78: 1998-01-03 | G78: 17 | H78: Junior | I78: 3184 | J78: 83.78947368 | K78: High Potential | L78: 1184 | M78: 78.93333333 | N78: More training needed | O78: 81.36140351 | P78: Accepted
A79: NICAISE | B79: Véronique | C79: Switzerland | D79: Sporteo | E79: F | F79: 1992-10-05 | G79: 22 | H79: Senior | I79: 3421 | J79: 90.02631579 | K79: OK | L79: 1421 | M79: 94.73333333 | N79: OK | O79: 92.37982456 | P79: Accepted
A80: NONYME | B80: Anne | C80: Belgium | D80: Atleco | E80: F | F80: 1992-08-15 | G80: 22 | H80: Senior | I80: 2799 | J80: 73.65789474 | K80: OK | L80: 865 | M80: 57.66666667 | N80: To be improved | O80: 65.6622807 | P80: Not accepted
A81: NOTE | B81: Pia | C81: Italy | D81: Atletico | E81: F | F81: 1993-01-03 | G81: 22 | H81: Senior | I81: 3333 | J81: 87.71052632 | K81: OK | L81: 1150 | M81: 76.66666667 | N81: OK | O81: 82.18859649 | P81: Accepted
A82: ORTIZ VALLEJO | B82: Rafaël | C82: Spain | D82: Asturial | E82: M | F82: 1997-03-19 | G82: 18 | H82: Senior | I82: 3228 | J82: 84.94736842 | K82: OK | L82: 1228 | M82: 81.86666667 | N82: OK | O82: 83.40701754 | P82: Accepted
A83: OUELD CHAIB | B83: Mohammed | C83: Algeria | D83: Raja | E83: M | F83: 1998-10-24 | G83: 16 | H83: Junior | I83: 2423 | J83: 63.76315789 | K83: More training needed | L83: 423 | M83: 28.2 | N83: To be improved | O83: 45.98157895 | P83: Not accepted
A84: OURIAGHLI | B84: Hafida | C84: Algeria | D84: Raja | E84: F | F84: 1992-02-08 | G84: 23 | H84: Senior | I84: 1917 | J84: 50.44736842 | K84: To be improved | L84: 580 | M84: 38.66666667 | N84: To be improved | O84: 44.55701754 | P84: Not accepted
A85: PAUDE | B85: Anne | C85: Switzerland | D85: Sporteo | E85: F | F85: 1994-04-28 | G85: 20 | H85: Senior | I85: 3254 | J85: 85.63157895 | K85: OK | L85: 138 | M85: 9.2 | N85: To be improved | O85: 47.41578947 | P85: Not accepted
A86: PECORARO | B86: Roberto | C86: Italy | D86: Atletico | E86: M | F86: 1998-07-18 | G86: 16 | H86: Junior | I86: 2443 | J86: 64.28947368 | K86: More training needed | L86: 443 | M86: 29.53333333 | N86: To be improved | O86: 46.91140351 | P86: Not accepted
A87: PINCHART | B87: Marc | C87: Belgium | D87: Atleco | E87: M | F87: 1994-07-14 | G87: 20 | H87: Senior | I87: 2154 | J87: 56.68421053 | K87: To be improved | L87: 154 | M87: 10.26666667 | N87: To be improved | O87: 33.4754386 | P87: Not accepted
A88: POLLAK | B88: Bernard | C88: France | D88: Olympic | E88: M | F88: 1995-10-18 | G88: 19 | H88: Senior | I88: 2142 | J88: 56.36842105 | K88: To be improved | L88: 142 | M88: 9.466666667 | N88: To be improved | O88: 32.91754386 | P88: Not accepted
A89: PONNEN | B89: Radhakrishnan | C89: France | D89: Sporteo | E89: M | F89: 1999-08-04 | G89: 15 | H89: Junior | I89: 2929 | J89: 77.07894737 | K89: More training needed | L89: 929 | M89: 61.93333333 | N89: More training needed | O89: 69.50614035 | P89: Accepted
A90: POON | B90: Kwok Shing | C90: Korea | D90: Sporteo | E90: M | F90: 1996-03-22 | G90: 19 | H90: Senior | I90: 3051 | J90: 80.28947368 | K90: OK | L90: 1051 | M90: 70.06666667 | N90: OK | O90: 75.17807018 | P90: Accepted
A91: POTE | B91: Jacques | C91: Algeria | D91: Raja | E91: M | F91: 1995-11-07 | G91: 19 | H91: Senior | I91: 3688 | J91: 97.05263158 | K91: OK | L91: 1075 | M91: 71.66666667 | N91: OK | O91: 84.35964912 | P91: Accepted
A92: POURCENT | B92: Vincent | C92: France | D92: Olympic | E92: M | F92: 1993-07-30 | G92: 21 | H92: Senior | I92: 3710 | J92: 97.63157895 | K92: OK | L92: 1076 | M92: 71.73333333 | N92: OK | O92: 84.68245614 | P92: Accepted
A93: PREVOST | B93: Nathalie | C93: Switzerland | D93: Sporteo | E93: F | F93: 1996-02-20 | G93: 19 | H93: Senior | I93: 2535 | J93: 66.71052632 | K93: OK | L93: 535 | M93: 35.66666667 | N93: To be improved | O93: 51.18859649 | P93: Not accepted
A94: PROCHAIN | B94: Edmond | C94: France | D94: Olympic | E94: M | F94: 2000-03-04 | G94: 15 | H94: Junior | I94: 3075 | J94: 80.92105263 | K94: High Potential | L94: 1075 | M94: 71.66666667 | N94: More training needed | O94: 76.29385965 | P94: Accepted
A95: QUETTING | B95: Marc | C95: Italy | D95: Atletico | E95: M | F95: 1994-04-06 | G95: 20 | H95: Senior | I95: 3010 | J95: 79.21052632 | K95: OK | L95: 1150 | M95: 76.66666667 | N95: OK | O95: 77.93859649 | P95: Accepted
A96: RAYA VILCHEZ | B96: Carla | C96: Spain | D96: Asturial | E96: F | F96: 1995-03-27 | G96: 20 | H96: Senior | I96: 1941 | J96: 51.07894737 | K96: To be improved | L96: 670 | M96: 44.66666667 | N96: To be improved | O96: 47.87280702 | P96: Not accepted
A97: RIAIRE | B97: Claire | C97: Switzerland | D97: Sporteo | E97: F | F97: 1995-10-17 | G97: 19 | H97: Senior | I97: 2035 | J97: 53.55263158 | K97: To be improved | L97: 230 | M97: 15.33333333 | N97: To be improved | O97: 34.44298246 | P97: Not accepted
A98: RINDONE | B98: Giuseppe | C98: Italy | D98: Atletico | E98: M | F98: 2001-03-09 | G98: 14 | H98: Junior | I98: 3273 | J98: 86.13157895 | K98: High Potential | L98: 1273 | M98: 84.86666667 | N98: High Potential | O98: 85.49912281 | P98: Accepted
A99: RISO | B99: Adriano | C99: Italy | D99: Atletico | E99: M | F99: 2000-07-02 | G99: 14 | H99: Junior | I99: 2536 | J99: 66.73684211 | K99: More training needed | L99: 536 | M99: 35.73333333 | N99: To be improved | O99: 51.23508772 | P99: Not accepted
A100: RONT | B100: Claire | C100: France | D100: Olympic | E100: F | F100: 2001-03-27 | G100: 14 | H100: Junior | I100: 3255 | J100: 85.65789474 | K100: High Potential | L100: 677 | M100: 45.13333333 | N100: To be improved | O100: 65.39561404 | P100: Not accepted
A101: SPLINGART | B101: Pascal | C101: Belgium | D101: Atleco | E101: M | F101: 1992-10-24 | G101: 22 | H101: Senior | I101: 2874 | J101: 75.63157895 | K101: OK | L101: 874 | M101: 58.26666667 | N101: To be improved | O101: 66.94912281 | P101: Not accepted
A102: STIQUÉE | B102: Sophie | C102: Belgium | D102: Atleco | E102: F | F102: 1997-01-04 | G102: =YEAR(J$2)-YEAR(F102)-IF(DATE(YEAR(J$2),MONTH(F102),DAY(F102))>J$2,1,0) -> 18 | H102: =IF(G102<18,"Junior","Senior") -> Senior | I102: 3785 | J102: =I102/38 -> 99.60526316 | K102: =IF(AND(J102>=80,H102="Junior"),"High Potential",IF(AND(J102>=60,H102="Senior"),"OK",IF(J102>=60,"More training needed","To be improved"))) -> OK | L102: 715 | M102: =L102/15 -> 47.66666667 | N102: =IF(AND(M102>=80,H102="Junior"),"High Potential",IF(AND(M102>=60,H102="Senior"),"OK",IF(M102>=60,"More training needed","To be improved"))) -> To be improved | O102: =(M102+J102)/2 -> 73.63596491 | P102: =IF(AND(J102>=60,M102>=60),"Accepted",IF(M102>J102,"New test needed","Not accepted")) -> Not accepted
A103: SWERTS | B103: André | C103: Belgium | D103: Atleco | E103: M | F103: 1994-09-24 | G103: 20 | H103: Senior | I103: 2154 | J103: 56.68421053 | K103: To be improved | L103: 940 | M103: 62.66666667 | N103: OK | O103: 59.6754386 | P103: New test needed
A104: TATOUILLE | B104: Lara | C104: Belgium | D104: Atleco | E104: F | F104: 1999-05-14 | G104: 15 | H104: Junior | I104: 3775 | J104: 99.34210526 | K104: High Potential | L104: 830 | M104: 55.33333333 | N104: To be improved | O104: 77.3377193 | P104: Not accepted
A105: TERIEUR | B105: Alain | C105: Belgium | D105: Atleco | E105: M | F105: 1997-05-17 | G105: 17 | H105: Junior | I105: 3557 | J105: 93.60526316 | K105: High Potential | L105: 441 | M105: 29.4 | N105: To be improved | O105: 61.50263158 | P105: Not accepted
A106: TERIEUR | B106: Alex | C106: Switzerland | D106: Sporteo | E106: M | F106: 1999-07-17 | G106: 15 | H106: Junior | I106: 2609 | J106: 68.65789474 | K106: More training needed | L106: 933 | M106: 62.2 | N106: More training needed | O106: 65.42894737 | P106: Accepted
A107: THARE | B107: Maggy | C107: France | D107: Olympic | E107: F | F107: 1998-03-01 | G107: 17 | H107: Junior | I107: 3701 | J107: 97.39473684 | K107: High Potential | L107: 918 | M107: 61.2 | N107: More training needed | O107: 79.29736842 | P107: Accepted
A108: THELEF | B108: Eric | C108: Switzerland | D108: Sporteo | E108: M | F108: 1995-12-11 | G108: 19 | H108: Senior | I108: 3734 | J108: 98.26315789 | K108: OK | L108: 1157 | M108: 77.13333333 | N108: OK | O108: 87.69824561 | P108: Accepted
A109: THON | B109: Dick | C109: Netherlands | D109: Extrasportief | E109: M | F109: 1994-10-20 | G109: 20 | H109: Senior | I109: 2053 | J109: 54.02631579 | K109: To be improved | L109: 1017 | M109: 67.8 | N109: OK | O109: 60.91315789 | P109: New test needed
A110: TORISAEN | B110: Michel | C110: Switzerland | D110: Sporteo | E110: M | F110: 1998-01-09 | G110: 17 | H110: Junior | I110: 2431 | J110: 63.97368421 | K110: More training needed | L110: 431 | M110: 28.73333333 | N110: To be improved | O110: 46.35350877 | P110: Not accepted
A111: VAN BELLE | B111: Philippe | C111: Belgium | D111: Atleco | E111: M | F111: 1996-11-25 | G111: 18 | H111: Senior | I111: 1964 | J111: 51.68421053 | K111: To be improved | L111: 670 | M111: 44.66666667 | N111: To be improved | O111: 48.1754386 | P111: Not accepted
A112: VAN DE PUTTE | B112: Michel | C112: Netherlands | D112: Extrasportief | E112: M | F112: 1997-11-12 | G112: 17 | H112: Junior | I112: 3232 | J112: 85.05263158 | K112: High Potential | L112: 1232 | M112: 82.13333333 | N112: High Potential | O112: 83.59298246 | P112: Accepted
A113: VAN DE WOESTYNE | B113: Gertjan | C113: Netherlands | D113: Extrasportief | E113: M | F113: 2001-01-01 | G113: 14 | H113: Junior | I113: 2935 | J113: 77.23684211 | K113: More training needed | L113: 935 | M113: 62.33333333 | N113: More training needed | O113: 69.78508772 | P113: Accepted
A114: VAN DEN ENDE | B114: Eefje | C114: Netherlands | D114: Extrasportief | E114: F | F114: 2001-08-01 | G114: 13 | H114: Junior | I114: 1929 | J114: 50.76315789 | K114: To be improved | L114: 950 | M114: 63.33333333 | N114: More training needed | O114: 57.04824561 | P114: New test needed
A115: VAN RO | B115: Michael | C115: Belgium | D115: Atleco | E115: M | F115: 1994-06-28 | G115: 20 | H115: Senior | I115: 2130 | J115: 56.05263158 | K115: To be improved | L115: 130 | M115: 8.666666667 | N115: To be improved | O115: 32.35964912 | P115: Not accepted
A116: VANDAMME | B116: Pascal | C116: Belgium | D116: Atleco | E116: M | F116: 1994-05-06 | G116: 20 | H116: Senior | I116: 3074 | J116: 80.89473684 | K116: OK | L116: 1074 | M116: 71.6 | N116: OK | O116: 76.24736842 | P116: Accepted
A117: VANDEKERCKHOVE | B117: Saskja | C117: Netherlands | D117: Extrasportief | E117: F | F117: 2000-04-21 | G117: 14 | H117: Junior | I117: 3386 | J117: 89.10526316 | K117: High Potential | L117: 1386 | M117: 92.4 | N117: High Potential | O117: 90.75263158 | P117: Accepted
A118: VANDEKERCKOVE | B118: Philippe | C118: Belgium | D118: Atleco | E118: M | F118: 1999-01-09 | G118: 16 | H118: Junior | I118: 2676 | J118: 70.42105263 | K118: More training needed | L118: 676 | M118: 45.06666667 | N118: To be improved | O118: 57.74385965 | P118: Not accepted
A119: VANDROMME | B119: Alain | C119: Belgium | D119: Atleco | E119: M | F119: 1999-07-22 | G119: 15 | H119: Junior | I119: 2153 | J119: 56.65789474 | K119: To be improved | L119: 750 | M119: 50 | N119: To be improved | O119: 53.32894737 | P119: Not accepted
A120: VANTUYKOM | B120: Hilde | C120: Netherlands | D120: Extrasportief | E120: f | F120: 2001-01-16 | G120: 14 | H120: Junior | I120: 2885 | J120: 75.92105263 | K120: More training needed | L120: 885 | M120: 59 | N120: To be improved | O120: 67.46052632 | P120: Not accepted
A121: VELA HERNANDEZ | B121: José | C121: Spain | D121: Asturial | E121: M | F121: 1997-11-25 | G121: 17 | H121: Junior | I121: 3167 | J121: 83.34210526 | K121: High Potential | L121: 1167 | M121: 77.8 | N121: More training needed | O121: 80.57105263 | P121: Accepted
A122: VERDOODT | B122: Karel | C122: Netherlands | D122: Extrasportief | E122: M | F122: 2001-02-24 | G122: 14 | H122: Junior | I122: 3216 | J122: 84.63157895 | K122: High Potential | L122: 1216 | M122: 81.06666667 | N122: High Potential | O122: 82.84912281 | P122: Accepted
A123: VERHEUGEN | B123: Jean | C123: Belgium | D123: Atleco | E123: M | F123: 1994-01-04 | G123: 21 | H123: Senior | I123: 3250 | J123: 85.52631579 | K123: OK | L123: 1250 | M123: 83.33333333 | N123: OK | O123: 84.42982456 | P123: Accepted
A124: VERSTAPPEN | B124: Didier | C124: Belgium | D124: Atleco | E124: M | F124: 1999-01-06 | G124: 16 | H124: Junior | I124: 2396 | J124: 63.05263158 | K124: More training needed | L124: 396 | M124: 26.4 | N124: To be improved | O124: 44.72631579 | P124: Not accepted
A125: VERSTRAETE | B125: Piet | C125: Netherlands | D125: Extrasportief | E125: M | F125: 1999-04-12 | G125: 15 | H125: Junior | I125: 2512 | J125: 66.10526316 | K125: More training needed | L125: 512 | M125: 34.13333333 | N125: To be improved | O125: 50.11929825 | P125: Not accepted
A126: VERVISCH | B126: Didier | C126: Belgium | D126: Atleco | E126: M | F126: 1997-08-15 | G126: 17 | H126: Junior | I126: 2711 | J126: 71.34210526 | K126: More training needed | L126: 711 | M126: 47.4 | N126: To be improved | O126: 59.37105263 | P126: Not accepted
A127: VOYANCE | B127: Claire | C127: France | D127: Olympic | E127: F | F127: 1993-07-27 | G127: 21 | H127: Senior | I127: 2504 | J127: 65.89473684 | K127: OK | L127: 882 | M127: 58.8 | N127: To be improved | O127: 62.34736842 | P127: Not accepted
A128: VOYANTE | B128: Claire | C128: Belgium | D128: Atleco | E128: M | F128: 2000-11-01 | G128: 14 | H128: Junior | I128: 3318 | J128: 87.31578947 | K128: High Potential | L128: 715 | M128: 47.66666667 | N128: To be improved | O128: 67.49122807 | P128: Not accepted
A129: WAUQUIER | B129: Françoise | C129: Belgium | D129: Atleco | E129: F | F129: 1996-09-20 | G129: 18 | H129: Senior | I129: 3208 | J129: 84.42105263 | K129: OK | L129: 1208 | M129: 80.53333333 | N129: OK | O129: 82.47719298 | P129: Accepted
A130: WIJMMERSCH | B130: Willy | C130: Belgium | D130: Atleco | E130: M | F130: 1999-01-17 | G130: 16 | H130: Junior | I130: 2865 | J130: 75.39473684 | K130: More training needed | L130: 865 | M130: 57.66666667 | N130: To be improved | O130: 66.53070175 | P130: Not accepted
A131: YAHIAOUI | B131: Mohamed | C131: Algeria | D131: Raja | E131: M | F131: 1993-12-30 | G131: 21 | H131: Senior | I131: 3075 | J131: 80.92105263 | K131: OK | L131: 1075 | M131: 71.66666667 | N131: OK | O131: 76.29385965 | P131: Accepted
A132: ZIANE | B132: Louis | C132: France | D132: Olympic | E132: M | F132: 1995-10-27 | G132: 19 | H132: Senior | I132: 2990 | J132: 78.68421053 | K132: OK | L132: 1075 | M132: 71.66666667 | N132: OK | O132: 75.1754386 | P132: Accepted
